Workbook

Sheet Sheet1
A1: 2022年青岛西海岸新区公开招聘非事业编制幼儿教师面试总成绩
A2: 序号 | B2: 姓名 | C2: 性别 | D2: 职位名称 | E2: 报名编号 | F2: 说课成绩 | G2: 技能测试成绩 | H2: 总成绩 | I2: 是否进入考察范围 | J2: 是否等额考察人员 | K2: 备注
A3: 1 | B3: 陈睿 | C3: 女 | D3: 幼儿教师职位一 | E3: 199649169080714734 | F3: 86.40 | G3: 82.30 | H3: =AVERAGE(C3:G3) -> 84.35 | I3: Y | J3: 是
A4: 2 | B4: 王泽 | C4: 女 | D4: 幼儿教师职位一 | E4: 199485354900873645 | F4: 82.84 | G4: 76.80 | H4: 79.82 | I4: Y | J4: 是
A5: 3 | B5: 张宝梅 | C5: 女 | D5: 幼儿教师职位一 | E5: 201434286795178151 | F5: 79.70 | G5: 75.80 | H5: 77.75 | I5: Y | J5: 是
A6: 4 | B6: 樊晓滕 | C6: 女 | D6: 幼儿教师职位一 | E6: 199118530770280905 | F6: 72.60 | G6: 72.60 | H6: 72.60 | I6: Y | J6: 是
A7: 5 | B7: 赵韩 | C7: 女 | D7: 幼儿教师职位一 | E7: 199121232443134379 | F7: 66.40 | G7: 75.62 | H7: 71.01 | I7: Y | J7: 是
A8: 6 | B8: 范黎 | C8: 女 | D8: 幼儿教师职位一 | E8: 199768163460751991 | F8: 72.40 | G8: 69.00 | H8: 70.70 | I8: Y | J8: 是
A9: 7 | B9: 温廷 | C9: 女 | D9: 幼儿教师职位一 | E9: 199450321234423877 | K9: 缺考
A10: 8 | B10: 张晓彩 | C10: 女 | D10: 幼儿教师职位一 | E10: 199890670889161399 | K10: 缺考
A11: 9 | B11: 王璐 | C11: 女 | D11: 幼儿教师职位二 | E11: 199838136099046184 | F11: 79.00 | G11: 82.80 | H11: =AVERAGE(C11:G11) -> 80.90 | I11: Y | J11: 是
A12: 10 | B12: 刘明泽 | C12: 男 | D12: 幼儿教师职位二 | E12: 199899984777340253 | F12: 82.80 | G12: 78.50 | H12: 80.65 | I12: Y | J12: 是
A13: 11 | B13: 薛雨 | C13: 女 | D13: 幼儿教师职位二 | E13: 199468565575913778 | F13: 78.84 | G13: 80.80 | H13: 79.82 | I13: Y | J13: 是
A14: 12 | B14: 方峥鑫 | C14: 女 | D14: 幼儿教师职位二 | E14: 199113811972729531 | F14: 79.50 | G14: 75.10 | H14: 77.30 | I14: Y | J14: 是
A15: 13 | B15: 董丽萍 | C15: 女 | D15: 幼儿教师职位二 | E15: 199567013998376634 | F15: 63.30 | G15: 65.22 | H15: 64.26 | I15: Y | J15: 是
A16: 14 | B16: 孙铭璐 | C16: 女 | D16: 幼儿教师职位二 | E16: 201687094484161018 | F16: 69.00 | G16: 45.80 | H16: 57.40
A17: 15 | B17: 李汉森 | C17: 男 | D17: 幼儿教师职位二 | E17: 199234058625150979 | F17: 0.00 | G17: 0.00 | H17: 0.00
A18: 16 | B18: 谭雅丽 | C18: 女 | D18: 幼儿教师职位二 | E18: 199836566984811191 | K18: 缺考
A19: 17 | B19: 徐巾翠 | C19: 女 | D19: 幼儿教师职位三 | E19: 199604444055458646 | F19: 89.26 | G19: 89.06 | H19: =F19*0.5+G19*0.5 -> 89.16 | I19: Y | J19: 是
A20: 18 | B20: 王欣茹 | C20: 女 | D20: 幼儿教师职位三 | E20: 199604000860062191 | F20: 83.82 | G20: 79.94 | H20: =F20*0.5+G20*0.5 -> 81.88 | I20: Y | J20: 是
A21: 19 | B21: 张昱 | C21: 女 | D21: 幼儿教师职位四 | E21: 199163513661465051 | F21: 88.60 | G21: 89.20 | H21: =AVERAGE(C21:G21) -> 88.90 | I21: Y | J21: 是
A22: 20 | B22: 李小岑 | C22: 女 | D22: 幼儿教师职位四 | E22: 199162525122705229 | F22: 83.20 | G22: 76.80 | H22: 80.00 | I22: Y | J22: 是
A23: 21 | B23: 于静 | C23: 女 | D23: 幼儿教师职位四 | E23: 199630426472653321 | F23: 82.00 | G23: 76.60 | H23: 79.30 | I23: Y | J23: 是
A24: 22 | B24: 傅雪梅 | C24: 女 | D24: 幼儿教师职位四 | E24: 199532147646824902 | F24: 78.80 | G24: 76.40 | H24: 77.60 | I24: Y | J24: 是
A25: 23 | B25: 蔡雯琦 | C25: 女 | D25: 幼儿教师职位四 | E25: 199634743791395342 | F25: 71.80 | G25: 79.70 | H25: 75.75 | I25: Y | J25: 是
A26: 24 | B26: 陈琪 | C26: 女 | D26: 幼儿教师职位四 | E26: 199602687267042526 | F26: 77.00 | G26: 73.60 | H26: 75.30 | I26: Y | J26: 是
A27: 25 | B27: 张金彩 | C27: 女 | D27: 幼儿教师职位四 | E27: 199637346692547096 | F27: 76.40 | G27: 73.70 | H27: 75.05 | I27: Y | J27: 是
A28: 26 | B28: 李润佳 | C28: 女 | D28: 幼儿教师职位四 | E28: 199262288115658783 | F28: 78.20 | G28: 69.60 | H28: 73.90 | I28: Y | J28: 是
A29: 27 | B29: 张霞 | C29: 女 | D29: 幼儿教师职位四 | E29: 199195846183682509 | F29: 69.60 | G29: 77.80 | H29: 73.70 | I29: Y | J29: 是
A30: 28 | B30: 杨丽萍 | C30: 女 | D30: 幼儿教师职位四 | E30: 199533566777033067 | F30: 74.80 | G30: 71.80 | H30: 73.30 | I30: Y | J30: 是
A31: 29 | B31: 程艳 | C31: 女 | D31: 幼儿教师职位四 | E31: 199109133474190315 | F31: 79.20 | G31: 67.30 | H31: 73.25 | I31: Y | J31: 是
A32: 30 | B32: 陈录 | C32: 女 | D32: 幼儿教师职位四 | E32: 199644893994546544 | F32: 78.00 | G32: 68.50 | H32: 73.25 | I32: Y | J32: 是
A33: 31 | B33: 李晓迪 | C33: 女 | D33: 幼儿教师职位四 | E33: 199873852434776883 | F33: 76.60 | G33: 69.10 | H33: 72.85 | I33: Y | J33: 是
A34: 32 | B34: 张艺潇 | C34: 女 | D34: 幼儿教师职位四 | E34: 199891015090475898 | F34: 76.40 | G34: 67.60 | H34: 72.00 | I34: Y | J34: 是
A35: 33 | B35: 史易宁 | C35: 女 | D35: 幼儿教师职位四 | E35: 199862739307464673 | F35: 65.40 | G35: 67.80 | H35: 66.60 | I35: Y | J35: 是
A36: 34 | B36: 张晶晶 | C36: 女 | D36: 幼儿教师职位四 | E36: 199648440668521963 | F36: 70.60 | G36: 59.80 | H36: 65.20
A37: 35 | B37: 孙丹丹 | C37: 女 | D37: 幼儿教师职位四 | E37: 199650085146169973 | F37: 76.10 | G37: 47.00 | H37: 61.55
A38: 36 | B38: 孟芳 | C38: 女 | D38: 幼儿教师职位四 | E38: 199167618345747543 | K38: 缺考
A39: 37 | B39: 席月 | C39: 女 | D39: 幼儿教师职位四 | E39: 199268250348040264 | K39: 缺考
A40: 38 | B40: 王晓晴 | C40: 女 | D40: 幼儿教师职位四 | E40: 199818465757012624 | K40: 缺考
A41: 39 | B41: 张静 | C41: 女 | D41: 幼儿教师职位五 | E41: 199892693470606005 | F41: 85.94 | G41: 86.22 | H41: =F41*0.5+G41*0.5 -> 86.08 | I41: Y | J41: 是
A42: 40 | B42: 韩鑫 | C42: 女 | D42: 幼儿教师职位五 | E42: 199560482636673573 | F42: 85.76 | G42: 86.14 | H42: 85.95 | I42: Y | J42: 是
A43: 41 | B43: 姜强 | C43: 女 | D43: 幼儿教师职位五 | E43: 199897684340044482 | F43: 83.96 | G43: 83.56 | H43: 83.76 | I43: Y | J43: 是
A44: 42 | B44: 宋杰 | C44: 女 | D44: 幼儿教师职位五 | E44: 199508731430654229 | F44: 76.50 | G44: 81.14 | H44: 78.82 | I44: Y | J44: 是
A45: 43 | B45: 吕晓红 | C45: 女 | D45: 幼儿教师职位五 | E45: 199652923578406142 | K45: 缺考
A46: 44 | B46: 代小倩 | C46: 女 | D46: 幼儿教师职位六 | E46: 199151890636976751 | F46: 92.08 | G46: 93.10 | H46: =F46*0.5+G46*0.5 -> 92.59 | I46: Y | J46: 是
A47: 45 | B47: 崔晓晓 | C47: 女 | D47: 幼儿教师职位六 | E47: 199878920873681743 | F47: 88.90 | G47: 86.48 | H47: 87.69 | I47: Y | J47: 是
A48: 46 | B48: 王倩 | C48: 女 | D48: 幼儿教师职位七 | E48: 199313229250482197 | F48: 90.94 | G48: 89.46 | H48: 90.20 | I48: Y | J48: 是
A49: 47 | B49: 廖中慧 | C49: 女 | D49: 幼儿教师职位七 | E49: 199580806392521167 | F49: 88.56 | G49: 90.90 | H49: 89.73 | I49: Y | J49: 是
A50: 48 | B50: 王乙涵 | C50: 女 | D50: 幼儿教师职位七 | E50: 200662600911089745 | F50: 89.86 | G50: 89.50 | H50: 89.68 | I50: Y | J50: 是
A51: 49 | B51: 尹静 | C51: 女 | D51: 幼儿教师职位七 | E51: 199271099794710558 | F51: 88.12 | G51: 90.52 | H51: 89.32 | I51: Y | J51: 是
A52: 50 | B52: 于晶晶 | C52: 女 | D52: 幼儿教师职位七 | E52: 199509700314849597 | F52: 85.64 | G52: 88.36 | H52: 87.00 | I52: Y | J52: 是
A53: 51 | B53: 王靖文 | C53: 女 | D53: 幼儿教师职位七 | E53: 199512696088064531 | F53: 86.98 | G53: 84.74 | H53: 85.86 | I53: Y | J53: 是
A54: 52 | B54: 樊虹秀 | C54: 女 | D54: 幼儿教师职位七 | E54: 199274563899740180 | F54: 87.50 | G54: 83.88 | H54: 85.69 | I54: Y | J54: 是
A55: 53 | B55: 李京娴 | C55: 女 | D55: 幼儿教师职位七 | E55: 199496492946437003 | F55: 84.90 | G55: 86.30 | H55: 85.60 | I55: Y | J55: 是
A56: 54 | B56: 刘熙华 | C56: 女 | D56: 幼儿教师职位七 | E56: 201454670659637427 | F56: 84.38 | G56: 86.26 | H56: 85.32 | I56: Y | J56: 是
A57: 55 | B57: 杲慧嵘 | C57: 女 | D57: 幼儿教师职位七 | E57: 199894654915941211 | F57: 83.90 | G57: 86.54 | H57: 85.22 | I57: Y
A58: 56 | B58: 牟嘉慧 | C58: 女 | D58: 幼儿教师职位七 | E58: 199627958015722082 | F58: 85.76 | G58: 84.54 | H58: 85.15 | I58: Y
A59: 57 | B59: 王倩倩 | C59: 女 | D59: 幼儿教师职位七 | E59: 199539609556939117 | F59: 87.40 | G59: 82.78 | H59: 85.09 | I59: Y
A60: 58 | B60: 李佳凝 | C60: 女 | D60: 幼儿教师职位七 | E60: 199909560071426797 | F60: 84.50 | G60: 82.84 | H60: 83.67 | I60: Y
A61: 59 | B61: 张金玉 | C61: 女 | D61: 幼儿教师职位七 | E61: 199840494572954769 | F61: 82.20 | G61: 83.48 | H61: 82.84 | I61: Y
A62: 60 | B62: 滕娇娇 | C62: 女 | D62: 幼儿教师职位七 | E62: 199652442936394245 | F62: 84.50 | G62: 80.94 | H62: 82.72
A63: 61 | B63: 姜小风 | C63: 女 | D63: 幼儿教师职位七 | E63: 199281889801023580 | F63: 81.12 | G63: 82.28 | H63: 81.70
A64: 62 | B64: 滕洁 | C64: 女 | D64: 幼儿教师职位七 | E64: 199557602852627238 | F64: 71.30 | G64: 73.34 | H64: 72.32
A65: 63 | B65: 刘啸 | C65: 女 | D65: 幼儿教师职位八 | E65: 199169890584884896 | F65: 83.46 | G65: 81.42 | H65: 82.44 | I65: Y | J65: 是
A66: 64 | B66: 法丽丽 | C66: 女 | D66: 幼儿教师职位九 | E66: 200297700850393234 | F66: 81.58 | G66: 83.08 | H66: 82.33 | I66: Y | J66: 是
A67: 65 | B67: 吕健立 | C67: 女 | D67: 幼儿教师职位十 | E67: 199306355776045141 | F67: 84.76 | G67: 91.86 | H67: =AVERAGE(C67:G67) -> 88.31 | I67: Y | J67: 是
A68: 66 | B68: 王欣 | C68: 女 | D68: 幼儿教师职位十 | E68: 199281579745476669 | F68: 83.62 | G68: 87.92 | H68: 85.77 | I68: Y | J68: 是
A69: 67 | B69: 王雅柔 | C69: 女 | D69: 幼儿教师职位十 | E69: 199466295543107786 | F69: 82.78 | G69: 86.58 | H69: 84.68 | I69: Y | J69: 是
A70: 68 | B70: 庄严 | C70: 女 | D70: 幼儿教师职位十 | E70: 199894509239345907 | F70: 83.14 | G70: 77.56 | H70: 80.35 | I70: Y | J70: 是
A71: 69 | B71: 张小桐 | C71: 女 | D71: 幼儿教师职位十 | E71: 199482352693575951 | F71: 80.84 | G71: 71.08 | H71: 75.96 | I71: Y | J71: 是
A72: 70 | B72: 丁雪蒙 | C72: 女 | D72: 幼儿教师职位十 | E72: 199859148119298698 | F72: 75.46 | G72: 74.88 | H72: 75.17 | I72: Y | J72: 是
A73: 71 | B73: 朱国香 | C73: 女 | D73: 幼儿教师职位十 | E73: 199473558832017849 | F73: 76.30 | G73: 73.78 | H73: 75.04 | I73: Y
A74: 72 | B74: 卢丽羽 | C74: 女 | D74: 幼儿教师职位十 | E74: 199278589101924369 | F74: 74.24 | G74: 72.22 | H74: 73.23 | I74: Y
A75: 73 | B75: 曲奕诺 | C75: 女 | D75: 幼儿教师职位十 | E75: 199621086399313932 | F75: 73.80 | G75: 69.52 | H75: 71.66 | I75: Y
A76: 74 | B76: 王丹丹 | C76: 女 | D76: 幼儿教师职位十 | E76: 199486375626723633 | F76: 74.76 | G76: 66.62 | H76: 70.69
A77: 75 | B77: 袁润青 | C77: 女 | D77: 幼儿教师职位十 | E77: 199107047898378817 | F77: 67.56 | G77: 65.58 | H77: 66.57
A78: 76 | B78: 王笑雨 | C78: 女 | D78: 幼儿教师职位十 | E78: 199587792546849634 | F78: 47.12 | G78: 60.80 | H78: 53.96
A79: 77 | B79: 李丛香 | C79: 女 | D79: 幼儿教师职位十 | E79: 199143597797419804 | F79: 0.00 | G79: 0.00 | H79: 0.00
A80: 78 | B80: 王佳慧 | C80: 女 | D80: 幼儿教师职位十一 | E80: 199584259088975085 | F80: 89.74 | G80: 91.20 | H80: =AVERAGE(C80:G80) -> 90.47 | I80: Y | J80: 是
A81: 79 | B81: 管欣怡 | C81: 女 | D81: 幼儿教师职位十一 | E81: 199846197882737264 | F81: 86.34 | G81: 89.98 | H81: 88.16 | I81: Y | J81: 是
A82: 80 | B82: 邢菲 | C82: 女 | D82: 幼儿教师职位十一 | E82: 199907077953614553 | F82: 89.30 | G82: 86.54 | H82: 87.92 | I82: Y | J82: 是
A83: 81 | B83: 马嘉妍 | C83: 女 | D83: 幼儿教师职位十一 | E83: 199559078295609870 | F83: 87.06 | G83: 88.70 | H83: 87.88 | I83: Y | J83: 是
A84: 82 | B84: 王娅萍 | C84: 女 | D84: 幼儿教师职位十一 | E84: 199871793375392534 | F84: 87.78 | G84: 86.16 | H84: 86.97 | I84: Y | J84: 是
A85: 83 | B85: 李世洁 | C85: 女 | D85: 幼儿教师职位十一 | E85: 199892253303554783 | F85: 88.36 | G85: 85.32 | H85: 86.84 | I85: Y | J85: 是
A86: 84 | B86: 朱全慧 | C86: 男 | D86: 幼儿教师职位十一 | E86: 199874063869544457 | F86: 86.24 | G86: 86.90 | H86: 86.57 | I86: Y | J86: 是
A87: 85 | B87: 毛苗苗 | C87: 女 | D87: 幼儿教师职位十一 | E87: 199640092237780184 | F87: 90.22 | G87: 82.70 | H87: 86.46 | I87: Y | J87: 是
A88: 86 | B88: 徐嘉霞 | C88: 女 | D88: 幼儿教师职位十一 | E88: 200581359431987800 | F88: 88.50 | G88: 83.78 | H88: 86.14 | I88: Y | J88: 是
A89: 87 | B89: 侯亚楠 | C89: 女 | D89: 幼儿教师职位十一 | E89: 199854782645790024 | F89: 86.12 | G89: 85.72 | H89: 85.92 | I89: Y | J89: 是
A90: 88 | B90: 胡雪 | C90: 女 | D90: 幼儿教师职位十一 | E90: 199093946327134776 | F90: 88.06 | G90: 83.76 | H90: 85.91 | I90: Y | J90: 是
A91: 89 | B91: 陈明 | C91: 女 | D91: 幼儿教师职位十一 | E91: 199174171648054305 | F91: 86.18 | G91: 85.44 | H91: 85.81 | I91: Y | J91: 是
A92: 90 | B92: 邰雯 | C92: 女 | D92: 幼儿教师职位十一 | E92: 199899375873545484 | F92: 84.10 | G92: 87.04 | H92: 85.57 | I92: Y
A93: 91 | B93: 徐丹 | C93: 女 | D93: 幼儿教师职位十一 | E93: 199823827474188023 | F93: 87.06 | G93: 83.84 | H93: 85.45 | I93: Y
A94: 92 | B94: 丁洁 | C94: 女 | D94: 幼儿教师职位十一 | E94: 199659680514069779 | F94: 85.70 | G94: 85.14 | H94: 85.42 | I94: Y
A95: 93 | B95: 朱小玲 | C95: 女 | D95: 幼儿教师职位十一 | E95: 199249190738591768 | F95: 84.02 | G95: 86.22 | H95: 85.12 | I95: Y
A96: 94 | B96: 刘晨 | C96: 女 | D96: 幼儿教师职位十一 | E96: 199906899993443732 | F96: 86.76 | G96: 83.14 | H96: 84.95 | I96: Y
A97: 95 | B97: 崔焕霞 | C97: 女 | D97: 幼儿教师职位十一 | E97: 199619183456248355 | F97: 87.44 | G97: 82.22 | H97: 84.83 | I97: Y
A98: 96 | B98: 丁丽丽 | C98: 女 | D98: 幼儿教师职位十一 | E98: 199604705196954125 | F98: 85.46 | G98: 82.94 | H98: 84.20
A99: 97 | B99: 郝佩茹 | C99: 女 | D99: 幼儿教师职位十一 | E99: 199660877295798085 | F99: 85.40 | G99: 80.22 | H99: 82.81
A100: 98 | B100: 崔甜甜 | C100: 女 | D100: 幼儿教师职位十一 | E100: 199169927201087979 | F100: 80.42 | G100: 85.10 | H100: 82.76
A101: 99 | B101: 张瑜 | C101: 女 | D101: 幼儿教师职位十一 | E101: 199289183083356181 | F101: 84.44 | G101: 80.48 | H101: 82.46
A102: 100 | B102: 李颖 | C102: 女 | D102: 幼儿教师职位十一 | E102: 199118775872793295 | F102: 82.76 | G102: 81.82 | H102: 82.29
A103: 101 | B103: 刘雯 | C103: 女 | D103: 幼儿教师职位十一 | E103: 199154674618778029 | F103: 77.36 | G103: 84.44 | H103: 80.90
A104: 102 | B104: 张琳 | C104: 女 | D104: 幼儿教师职位十一 | E104: 199884864256997276 | F104: 28.14 | G104: 22.16 | H104: 25.15
A105: 103 | B105: 丁瑶 | C105: 女 | D105: 幼儿教师职位十一 | E105: 199569836525998862 | K105: 缺考
A106: 104 | B106: 矫文彤 | C106: 女 | D106: 幼儿教师职位十二 | E106: 199279525484445763 | F106: 88.98 | G106: 88.44 | H106: =F106*0.5+G106*0.5 -> 88.71 | I106: Y | J106: 是
A107: 105 | B107: 薛晶文 | C107: 女 | D107: 幼儿教师职位十二 | E107: 201704426354946280 | F107: 85.84 | G107: 89.48 | H107: 87.66 | I107: Y | J107: 是
A108: 106 | B108: 姜琦 | C108: 女 | D108: 幼儿教师职位十二 | E108: 199570025261273622 | F108: 87.84 | G108: 84.98 | H108: 86.41 | I108: Y | J108: 是
A109: 107 | B109: 芦佳 | C109: 女 | D109: 幼儿教师职位十二 | E109: 199158874304078304 | F109: 85.78 | G109: 85.98 | H109: 85.88 | I109: Y | J109: 是
A110: 108 | B110: 潘楠 | C110: 女 | D110: 幼儿教师职位十二 | E110: 199559718920974754 | F110: 84.00 | G110: 85.54 | H110: 84.77 | I110: Y | J110: 是
A111: 109 | B111: 王伯双 | C111: 女 | D111: 幼儿教师职位十二 | E111: 199162934037975282 | F111: 83.94 | G111: 83.48 | H111: 83.71 | I111: Y | J111: 是
A112: 110 | B112: 姜海对 | C112: 女 | D112: 幼儿教师职位十二 | E112: 199251445621714968 | F112: 84.02 | G112: 78.24 | H112: 81.13 | I112: Y
A113: 111 | B113: 王维维 | C113: 女 | D113: 幼儿教师职位十二 | E113: 199168921008486232 | F113: 74.48 | G113: 71.04 | H113: 72.76 | I113: Y
A114: 112 | B114: 黄升鑫 | C114: 女 | D114: 幼儿教师职位十三 | E114: 199528313729991721 | F114: 82.88 | G114: 82.30 | H114: =AVERAGE(C114:G114) -> 82.59 | I114: Y | J114: 是
A115: 113 | B115: 毛阁琳 | C115: 女 | D115: 幼儿教师职位十三 | E115: 199866329996702587 | F115: 85.82 | G115: 70.58 | H115: 78.20 | I115: Y | J115: 是
A116: 114 | B116: 李子慧 | C116: 女 | D116: 幼儿教师职位十四 | E116: 199241338519277573 | F116: 85.70 | G116: 87.76 | H116: 86.73 | I116: Y | J116: 是
A117: 115 | B117: 康占敏 | C117: 女 | D117: 幼儿教师职位十四 | E117: 199535609134580695 | F117: 85.42 | G117: 84.84 | H117: 85.13 | I117: Y | J117: 是
A118: 116 | B118: 王雪 | C118: 女 | D118: 幼儿教师职位十四 | E118: 199115222856909852 | F118: 82.72 | G118: 86.84 | H118: 84.78 | I118: Y
A119: 117 | B119: 张丽萍 | C119: 女 | D119: 幼儿教师职位十四 | E119: 199533503988351479 | F119: 84.78 | G119: 84.72 | H119: 84.75
A120: 118 | B120: 丁晓文 | C120: 女 | D120: 幼儿教师职位十四 | E120: 199914966801846457 | F120: 87.60 | G120: 80.48 | H120: 84.04
A121: 119 | B121: 逄海婷 | C121: 女 | D121: 幼儿教师职位十五 | E121: 199266456398098444 | F121: 88.08 | G121: 87.78 | H121: 87.93 | I121: Y | J121: 是
A122: 120 | B122: 逄慧雯 | C122: 女 | D122: 幼儿教师职位十五 | E122: 199303311311110223 | F122: 85.20 | G122: 86.32 | H122: 85.76 | I122: Y | J122: 是
A123: 121 | B123: 安琪 | C123: 女 | D123: 幼儿教师职位十五 | E123: 199550284249362827 | F123: 82.46 | G123: 87.90 | H123: 85.18 | I123: Y | J123: 是
A124: 122 | B124: 刘雪 | C124: 女 | D124: 幼儿教师职位十五 | E124: 199513286591640336 | F124: 83.02 | G124: 80.52 | H124: 81.77 | I124: Y | J124: 是
A125: 123 | B125: 程钰 | C125: 女 | D125: 幼儿教师职位十六 | E125: 200563839585165400 | F125: 85.02 | G125: 76.08 | H125: 80.55 | I125: Y | J125: 是
A126: 124 | B126: 刘鹏洁 | C126: 女 | D126: 幼儿教师职位十六 | E126: 201657980582769903 | F126: 76.86 | G126: 81.62 | H126: 79.24 | I126: Y | J126: 是
A127: 125 | B127: 苏传慧 | C127: 女 | D127: 幼儿教师职位十六 | E127: 199442580759568414 | F127: 76.82 | G127: 76.14 | H127: 76.48 | I127: Y | J127: 是
A128: 126 | B128: 刘苗苗 | C128: 女 | D128: 幼儿教师职位十六 | E128: 199119025215832481 | F128: 74.10 | G128: 67.20 | H128: 70.65 | I128: Y | J128: 是
A129: 127 | B129: 逄晓宇 | C129: 女 | D129: 幼儿教师职位十六 | E129: 201004849402421357 | F129: 71.14 | G129: 68.82 | H129: 69.98 | I129: Y | J129: 是
A130: 128 | B130: 冯文静 | C130: 女 | D130: 幼儿教师职位十六 | E130: 200351875168612845 | F130: 69.06 | G130: 66.50 | H130: 67.78 | I130: Y
A131: 129 | B131: 臧晓 | C131: 女 | D131: 幼儿教师职位十六 | E131: 200593492551127186 | F131: 71.54 | G131: 60.54 | H131: 66.04 | I131: Y
A132: 130 | B132: 厉衍梅 | C132: 女 | D132: 幼儿教师职位十六 | E132: 199630594152534504 | F132: 70.84 | G132: 60.00 | H132: 65.42 | I132: Y
A133: 131 | B133: 黄晓曼 | C133: 女 | D133: 幼儿教师职位十六 | E133: 199847027515996997 | F133: 47.34 | G133: 55.52 | H133: 51.43
A134: 132 | B134: 闫磊 | C134: 女 | D134: 幼儿教师职位十七 | E134: 199246129202978825 | F134: 74.16 | G134: 72.44 | H134: 73.30 | I134: Y | J134: 是
A135: 133 | B135: 陈鑫 | C135: 女 | D135: 幼儿教师职位十七 | E135: 199135371152531899 | F135: 71.80 | G135: 69.88 | H135: 70.84 | I135: Y | J135: 是
A136: 134 | B136: 张思若 | C136: 女 | D136: 幼儿教师职位十七 | E136: 199111013055013289 | F136: 70.42 | G136: 65.94 | H136: 68.18 | I136: Y | J136: 是
A137: 135 | B137: 于彩霞 | C137: 女 | D137: 幼儿教师职位十七 | E137: 199508256824112150 | F137: 65.28 | G137: 61.82 | H137: 63.55 | I137: Y | J137: 是
A138: 136 | B138: 李瑶 | C138: 女 | D138: 幼儿教师职位十七 | E138: 199850279276008980 | F138: 65.08 | G138: 60.64 | H138: 62.86 | I138: Y | J138: 是
A139: 137 | B139: 马尧 | C139: 女 | D139: 幼儿教师职位十七 | E139: 200354298918568015 | F139: 0.00 | G139: 0.00 | H139: 0.00
A140: 138 | B140: 丁蕾 | C140: 女 | D140: 幼儿教师职位十七 | E140: 199880786768466788 | K140: 缺考
A141: 139 | B141: 田雪 | C141: 女 | D141: 幼儿教师职位十八 | E141: 199131318343377338 | F141: 85.78 | G141: 85.06 | H141: =AVERAGE(F141:G141) -> 85.42 | I141: Y | J141: 是
A142: 140 | B142: 逄金满 | C142: 女 | D142: 幼儿教师职位十八 | E142: 199598553776189916 | F142: 75.48 | G142: 84.02 | H142: 79.75 | I142: Y | J142: 是
A143: 141 | B143: 吕蒙霞 | C143: 女 | D143: 幼儿教师职位十八 | E143: 199881477830378390 | F143: 80.62 | G143: 78.24 | H143: 79.43 | I143: Y | J143: 是
A144: 142 | B144: 王媛媛 | C144: 女 | D144: 幼儿教师职位十八 | E144: 199658372902109706 | F144: 79.28 | G144: 79.56 | H144: 79.42 | I144: Y | J144: 是
A145: 143 | B145: 龚春玲 | C145: 女 | D145: 幼儿教师职位十八 | E145: 199892356638606272 | F145: 80.54 | G145: 77.72 | H145: 79.13 | I145: Y | J145: 是
A146: 144 | B146: 张玉娇 | C146: 女 | D146: 幼儿教师职位十八 | E146: 199903723487655109 | F146: 78.06 | G146: 79.62 | H146: 78.84 | I146: Y | J146: 是
A147: 145 | B147: 仲雪玉 | C147: 女 | D147: 幼儿教师职位十八 | E147: 199278456037584981 | F147: 81.50 | G147: 74.90 | H147: 78.20 | I147: Y | J147: 是
A148: 146 | B148: 逄甜甜 | C148: 女 | D148: 幼儿教师职位十八 | E148: 199285585540800552 | F148: 74.92 | G148: 80.30 | H148: 77.61 | I148: Y | J148: 是
A149: 147 | B149: 安美燕 | C149: 女 | D149: 幼儿教师职位十八 | E149: 199880747828630728 | F149: 82.48 | G149: 72.36 | H149: 77.42 | I149: Y | J149: 是
A150: 148 | B150: 李翠 | C150: 女 | D150: 幼儿教师职位十八 | E150: 199819823683965620 | F150: 77.70 | G150: 75.34 | H150: 76.52 | I150: Y | J150: 是
A151: 149 | B151: 李玲玉 | C151: 女 | D151: 幼儿教师职位十八 | E151: 199467294706020521 | F151: 67.60 | G151: 81.10 | H151: 74.35 | I151: Y | J151: 是
A152: 150 | B152: 贺蕾 | C152: 女 | D152: 幼儿教师职位十八 | E152: 199113623472402894 | F152: 73.80 | G152: 72.98 | H152: 73.39 | I152: Y | J152: 是
A153: 151 | B153: 刘欣然 | C153: 女 | D153: 幼儿教师职位十八 | E153: 199635995388441431 | F153: 77.82 | G153: 68.80 | H153: 73.31 | I153: Y | J153: 是
A154: 152 | B154: 黄一诺 | C154: 女 | D154: 幼儿教师职位十八 | E154: 200258046910419051 | F154: 72.96 | G154: 72.92 | H154: 72.94 | I154: Y | J154: 是
A155: 153 | B155: 周爱庆 | C155: 女 | D155: 幼儿教师职位十八 | E155: 199808958779872260 | F155: 78.90 | G155: 65.30 | H155: 72.10 | I155: Y | J155: 是
A156: 154 | B156: 宋代艳 | C156: 女 | D156: 幼儿教师职位十八 | E156: 199121929045733779 | F156: 77.42 | G156: 65.58 | H156: 71.50 | I156: Y | J156: 是
A157: 155 | B157: 王萍 | C157: 女 | D157: 幼儿教师职位十八 | E157: 199632306003117449 | F157: 68.82 | G157: 70.66 | H157: 69.74 | I157: Y | J157: 是
A158: 156 | B158: 张娇 | C158: 女 | D158: 幼儿教师职位十八 | E158: 199915626976961331 | F158: 75.82 | G158: 61.20 | H158: 68.51 | I158: Y | J158: 是
A159: 157 | B159: 李晓曼 | C159: 女 | D159: 幼儿教师职位十八 | E159: 199160151507354703 | F159: 76.56 | G159: 60.10 | H159: 68.33 | I159: Y | J159: 是
A160: 158 | B160: 徐萍 | C160: 女 | D160: 幼儿教师职位十八 | E160: 199504335367983747 | F160: 67.36 | G160: 64.10 | H160: 65.73 | I160: Y | J160: 是
A161: 159 | B161: 刘琪 | C161: 女 | D161: 幼儿教师职位十八 | E161: 199645644045026767 | F161: 61.94 | G161: 63.90 | H161: 62.92 | I161: Y | J161: 是
A162: 160 | B162: 耿晓 | C162: 女 | D162: 幼儿教师职位十八 | E162: 199108563212315297 | K162: 缺考
A163: 161 | B163: 王海南 | C163: 女 | D163: 幼儿教师职位十八 | E163: 199184170055012782 | K163: 缺考
A164: 162 | B164: 刘翠萍 | C164: 女 | D164: 幼儿教师职位十八 | E164: 199863395200161352 | K164: 缺考
A165: 163 | B165: 王晓孟 | C165: 女 | D165: 幼儿教师职位十九 | E165: 199887796385837803 | F165: 74.88 | G165: 81.58 | H165: =AVERAGE(C165:G165) -> 78.23 | I165: Y | J165: 是
A166: 164 | B166: 韩硕 | C166: 女 | D166: 幼儿教师职位十九 | E166: 199871387287114392 | F166: 75.48 | G166: 79.96 | H166: 77.72 | I166: Y | J166: 是
A167: 165 | B167: 刘赟 | C167: 女 | D167: 幼儿教师职位十九 | E167: 199587107608606508 | F167: 72.20 | G167: 75.02 | H167: 73.61 | I167: Y | J167: 是
A168: 166 | B168: 尹琴 | C168: 女 | D168: 幼儿教师职位十九 | E168: 199899914615030741 | F168: 74.44 | G168: 65.94 | H168: 70.19 | I168: Y | J168: 是
A169: 167 | B169: 代水虹 | C169: 女 | D169: 幼儿教师职位十九 | E169: 199863865289446157 | F169: 62.10 | G169: 60.68 | H169: 61.39 | I169: Y | J169: 是
A170: 168 | B170: 李雨馨 | C170: 女 | D170: 幼儿教师职位十九 | E170: 200981624094081553 | F170: 47.30 | G170: 68.02 | H170: 57.66
A171: 169 | B171: 孙怡 | C171: 女 | D171: 幼儿教师职位十九 | E171: 199273382435487794 | F171: 49.98 | G171: 64.50 | H171: 57.24
A172: 170 | B172: 管梦娅 | C172: 女 | D172: 幼儿教师职位二十 | E172: 199624464504338464 | F172: 75.90 | G172: 71.78 | H172: =AVERAGE(F172:G172) -> 73.84 | I172: Y | J172: 是
A173: 171 | B173: 张旭丽 | C173: 女 | D173: 幼儿教师职位二十 | E173: 199875939260430179 | F173: 63.50 | G173: 75.94 | H173: 69.72 | I173: Y | J173: 是
A174: 172 | B174: 于淼 | C174: 女 | D174: 幼儿教师职位二十 | E174: 199183914059919856 | F174: 65.04 | G174: 70.74 | H174: 67.89 | I174: Y | J174: 是
A175: 173 | B175: 阎颖慧 | C175: 女 | D175: 幼儿教师职位二十一 | E175: 199527346741629323 | F175: 84.70 | G175: 85.80 | H175: =F175/2+G175/2 -> 85.25 | I175: Y | J175: 是
A176: 174 | B176: 孙倩倩 | C176: 女 | D176: 幼儿教师职位二十一 | E176: 199122571575313441 | F176: 86.70 | G176: 83.70 | H176: 85.20 | I176: Y | J176: 是
A177: 175 | B177: 刘晓婷 | C177: 女 | D177: 幼儿教师职位二十一 | E177: 199581167358468948 | F177: 81.20 | G177: 82.50 | H177: 81.85 | I177: Y | J177: 是
A178: 176 | B178: 张晓营 | C178: 女 | D178: 幼儿教师职位二十一 | E178: 199870216543613655 | F178: 84.40 | G178: 71.80 | H178: 78.10 | I178: Y | J178: 是
A179: 177 | B179: 冯璇 | C179: 女 | D179: 幼儿教师职位二十一 | E179: 199806131982504491 | F179: 65.00 | G179: 87.80 | H179: 76.40 | I179: Y | J179: 是
A180: 178 | B180: 刘正 | C180: 女 | D180: 幼儿教师职位二十一 | E180: 199621113804903578 | F180: 84.10 | G180: 68.00 | H180: 76.05 | I180: Y | J180: 是
A181: 179 | B181: 李梦雪 | C181: 女 | D181: 幼儿教师职位二十一 | E181: 199834653409043580 | F181: 79.10 | G181: 68.20 | H181: 73.65 | I181: Y | J181: 是
A182: 180 | B182: 吴玉雪 | C182: 女 | D182: 幼儿教师职位二十一 | E182: 199892608678531967 | F182: 75.80 | G182: 68.80 | H182: 72.30 | I182: Y | J182: 是
A183: 181 | B183: 刘铭 | C183: 女 | D183: 幼儿教师职位二十一 | E183: 199152922658001339 | F183: 65.00 | G183: 68.00 | H183: 66.50 | I183: Y | J183: 是
A184: 182 | B184: 高晶晶 | C184: 女 | D184: 幼儿教师职位二十一 | E184: 199631437681526149 | F184: 62.60 | G184: 66.00 | H184: 64.30 | I184: Y | J184: 是
A185: 183 | B185: 陈倩倩 | C185: 女 | D185: 幼儿教师职位二十一 | E185: 199301794013261939 | F185: 0.00 | G185: 0.00 | H185: 0.00
A186: 184 | B186: 杨保凡 | C186: 女 | D186: 幼儿教师职位二十一 | E186: 199629814108414903 | F186: 0.00 | G186: 0.00 | H186: 0.00
A187: 185 | B187: 刘宇航 | C187: 女 | D187: 幼儿教师职位二十一 | E187: 199536335143453807 | K187: 缺考
A188: 186 | B188: 唐婕 | C188: 女 | D188: 幼儿教师职位二十一 | E188: 199540569981207703 | K188: 缺考
A189: 187 | B189: 龚晓燕 | C189: 女 | D189: 幼儿教师职位二十一 | E189: 199653095616217649 | K189: 缺考
A190: 188 | B190: 李彤 | C190: 女 | D190: 幼儿教师职位二十一 | E190: 199887794406105823 | K190: 缺考
A191: 189 | B191: 安伟 | C191: 女 | D191: 幼儿教师职位二十二 | E191: 201638866178998468 | F191: 83.68 | G191: 83.52 | H191: =AVERAGE(F191:G191) -> 83.60 | I191: Y | J191: 是
A192: 190 | B192: 刘芳丽 | C192: 女 | D192: 幼儿教师职位二十二 | E192: 199255419393290290 | F192: 80.50 | G192: 81.30 | H192: 80.90 | I192: Y | J192: 是
A193: 191 | B193: 刘一萍 | C193: 女 | D193: 幼儿教师职位二十二 | E193: 199823364037174355 | F193: 77.38 | G193: 77.56 | H193: 77.47 | I193: Y
A194: 192 | B194: 祝雪婷 | C194: 女 | D194: 幼儿教师职位二十三 | E194: 199917089505671303 | F194: 85.74 | G194: 86.30 | H194: 86.02 | I194: Y | J194: 是
A195: 193 | B195: 陈安 | C195: 女 | D195: 幼儿教师职位二十三 | E195: 199877209199145627 | F195: 82.68 | G195: 86.26 | H195: 84.47 | I195: Y | J195: 是
A196: 194 | B196: 张金凤 | C196: 女 | D196: 幼儿教师职位二十三 | E196: 199872373611279241 | F196: 83.10 | G196: 85.72 | H196: 84.41 | I196: Y | J196: 是
A197: 195 | B197: 丁明璇 | C197: 女 | D197: 幼儿教师职位二十三 | E197: 199162659688557393 | F197: 77.52 | G197: 81.82 | H197: 79.67 | I197: Y | J197: 是
A198: 196 | B198: 夏梅 | C198: 女 | D198: 幼儿教师职位二十三 | E198: 199553287538754834 | F198: 76.76 | G198: 79.90 | H198: 78.33 | I198: Y | J198: 是
A199: 197 | B199: 王亚倩 | C199: 女 | D199: 幼儿教师职位二十三 | E199: 200997129228107943 | F199: 60.10 | G199: 74.28 | H199: 67.19 | I199: Y
A200: 198 | B200: 庄琳 | C200: 女 | D200: 幼儿教师职位二十三 | E200: 199107764818166798 | F200: 70.36 | G200: 63.20 | H200: 66.78 | I200: Y
... 100 more rows
